Workbook

Sheet Лист1
I1: к постановлению Администрации Североуральского городского округа от 26.05.2017 г. №_____
A2: Приложение № 2 к муниципальной программе Североуральского городского округа «Развитие жилищно-коммунального хозяйства и транспортного обслуживания населения, повышение энергетической эффективности и охрана окружающей среды в Североуральском городском округе» на 2014-2020 годы
A3: План мероприятий
A4: по выполнению муниципальной программы Североуральского городского округа
A5: «Развитие жилищно-коммунального хозяйства и транспортного обслуживания населения,
A6: повышение энергетической эффективности и охрана окружающей среды в Североуральском городском округе» на 2014-2020 годы
A8: № строки | B8: Наименование мероприятия/ Источники расходов на финансирование | C8: Объем расходов на выполнение мероприятия за счет всех источников ресурсного обеспечения, тыс. руб. | K8: Номер строки целевых показателей, на достижение которых направлены мероприятия
C9: Всего | D9: 2014 год | E9: 2015 год | F9: 2016 год | G9: 2017 год | H9: 2018 год | I9: 2019 год | J9: 2020 год
B10: 1 | C10: 2 | D10: 3 | E10: 4 | F10: 5 | G10: 6 | H10: 7 | I10: 8 | J10: 9 | K10: 10
A11: 1. | B11: ВСЕГО по муниципальной программе, в том числе: | C11: =SUM(C12:C14) -> 1168155.363 | D11: =SUM(D12:D14) -> 283826.9 | E11: =SUM(E12:E14) -> 348239.16 | F11: =SUM(F12:F14) -> 216622.5876 | G11: 96199.11501 | H11: 81381 | I11: 64762.4 | J11: 77124.2 | K11: Х
A12: 1.1. | B12: местный бюджет | C12: =SUM(D12:J12) -> 644310.9788 | D12: =SUM(D16+D20) -> 92792.8 | E12: =SUM(E16+E20) -> 126635.26 | F12: 117147.5734 | G12: 86401.94542 | H12: 80408.1 | I12: 63801.1 | J12: 77124.2
A13: 1.2. | B13: областной бюджет | C13: =SUM(D13:J13) -> 336388.1133 | D13: =SUM(D17+D21) -> 109216.1 | E13: =SUM(E17+E21) -> 135104.3 | F13: =SUM(F17+F21) -> 81477.35126 | G13: =SUM(G17+G21) -> 8656.162 | H13: =SUM(H17+H21) -> 972.9 | I13: =SUM(I17+I21) -> 961.3 | J13: =SUM(J17+J21) -> 0
A14: 1.3. | B14: федеральный бюджет | C14: =SUM(D14:J14) -> 187456.2705 | D14: =SUM(D22+D18) -> 81818 | E14: =SUM(E22+E18) -> 86499.6 | F14: 17997.66293 | G14: 1141.00759 | H14: 0 | I14: 0 | J14: 0
A15: 2. | B15: Капитальные вложения | C15: =SUM(C16:C18) -> 718714.8997 | D15: =SUM(D16:D18) -> 232761.9 | E15: =SUM(E16:E18) -> 271669 | F15: 133207.8847 | G15: 29070.21501 | H15: 23522.3 | I15: 19775.5 | J15: 8708.1 | K15: Х
A16: 2.1. | B16: местный бюджет | C16: =SUM(D16:J16) -> 202110.5159 | D16: =D30+D120+D188+D208+D238+D271+D340+D359 -> 44727.8 | E16: 50411.3 | F16: 34707.97051 | G16: 20257.54542 | H16: 23522.3 | I16: 19775.5 | J16: 8708.1
A17: 2.2. | B17: областной бюджет | C17: =SUM(D17:J17) -> 329148.1133 | D17: =D121+D209+D31 -> 106216.1 | E17: =E121+E209+E31 -> 134758.1 | F17: =F121+F209 -> 80502.25126 | G17: =G121+G209 -> 7671.662 | H17: =H121+H209 -> 0 | I17: =I121+I209 -> 0 | J17: =J121+J209 -> 0
A18: 2.3. | B18: федеральный бюджет | C18: =SUM(D18:J18) -> 187456.2705 | D18: =D210 -> 81818 | E18: =E210 -> 86499.6 | F18: 17997.66293 | G18: 1141.00759 | H18: 0 | I18: 0 | J18: 0
A19: 3. | B19: Прочие нужды | C19: =SUM(C20:C21) -> 449440.4629 | D19: =SUM(D20:D21) -> 51065 | E19: =SUM(E20:E21) -> 76570.16 | F19: 83414.70288 | G19: 67128.9 | H19: 57858.7 | I19: 44986.9 | J19: 68416.1 | K19: Х
A20: 3.1. | B20: местный бюджет | C20: =SUM(D20:J20) -> 442200.4629 | D20: =D45+D166+D197+D226+D280+D349+D375+D247+D328 -> 48065 | E20: 76223.96 | F20: 82439.60288 | G20: 66144.4 | H20: 56885.8 | I20: 44025.6 | J20: 68416.1
A21: 3.2. | B21: областной бюджет | C21: =SUM(D21:J21) -> 7240 | D21: =SUM(D167+D374+D46) -> 3000 | E21: 346.2 | F21: 975.1 | G21: 984.5 | H21: 972.9 | I21: 961.3 | J21: 0
A22: 3.3. | B22: федеральный бюджет | C22: =SUM(D22:J22) -> 0 | D22: 0 | E22: =E167 -> 0 | F22: 0 | G22: 0 | H22: 0 | I22: 0 | J22: 0
A23: 4. | B23: Подпрограмма 1: Комплексное благоустройство территории Североуральского городского округа
A24: 4.1. | B24: Всего по подпрограмме 1, | C24: =SUM(C26+C27) -> 190883.3414 | D24: =SUM(D26:D27) -> 25725.2 | E24: 29762.2 | F24: 47222.84145 | G24: 33128.5 | H24: 21980 | I24: 5241.3 | J24: 27823.3 | K24: Х
B25: в том числе:
A26: 4.2. | B26: местный бюджет | C26: =SUM(D26:J26) -> 182177.9414 | D26: =SUM(D30+D45) -> 24510.5 | E26: 26102.3 | F26: 46247.74145 | G26: 32165 | H26: 21028.1 | I26: 4301 | J26: 27823.3
A27: 4.3. | B27: областной бюджет | C27: =SUM(D27:J27) -> 8705.4 | D27: =SUM(D31+D46) -> 1214.7 | E27: 3659.9 | F27: 975.1 | G27: 963.5 | H27: 951.9 | I27: 940.3 | J27: 0
A28: 5. | B28: 1. Капитальные вложения
A29: 5.1. | B29: Всего по направлению «Капитальные вложения» всего, в том числе | C29: =SUM(D29:J29) -> 23098.7 | D29: =SUM(D30+D31) -> 3536.4 | E29: =SUM(E30+E31) -> 3674.7 | F29: =SUM(F30) -> 4819 | G29: =SUM(G30) -> 3575 | H29: =SUM(H30) -> 3746.8 | I29: =SUM(I30) -> 0 | J29: =SUM(J30) -> 3746.8 | K29: Х
A30: 5.2. | B30: местный бюджет | C30: =SUM(D30:J30) -> 18570.3 | D30: =SUM(D41) -> 2321.7 | E30: =SUM(E41) -> 361 | F30: =SUM(F41) -> 4819 | G30: 3575 | H30: 3746.8 | I30: 0 | J30: 3746.8
A31: 5.3. | B31: областной бюджет | C31: =SUM(D31:J31) -> 4528.4 | D31: =SUM(D38) -> 1214.7 | E31: =SUM(E38) -> 3313.7 | F31: 0 | G31: 0 | H31: 0 | I31: 0 | J31: 0
A32: 6. | B32: 1.1. Бюджетные инвестиции в объекты капитального строительства
A33: 6.1. | B33: Бюджетные инвестиции в объекты капитального строительства всего, в том числе | C33: 0 | D33: 0 | E33: 0 | F33: 0 | G33: 0 | H33: 0 | I33: 0 | J33: 0 | K33: Х
A34: 6.2. | B34: местный бюджет | C34: 0 | D34: 0 | E34: 0 | F34: 0 | G34: 0 | H34: 0 | I34: 0 | J34: 0
A35: 7. | B35: 1.2. Иные капитальные вложения
A36: 7.1. | B36: Всего | C36: =SUM(D36:J36) -> 23098.7 | D36: =SUM(D37:D38) -> 3536.4 | E36: =SUM(E37:E38) -> 3674.7 | F36: 4819 | G36: 3575 | H36: 3746.8 | I36: 0 | J36: 3746.8 | K36: Х
A37: 7.2. | B37: местный бюджет | C37: =SUM(D37:J37) -> 18570.3 | D37: =SUM(D41) -> 2321.7 | E37: =SUM(E41) -> 361 | F37: 4819 | G37: 3575 | H37: 3746.8 | I37: 0 | J37: 3746.8
A38: 7.3. | B38: областной бюджет | C38: =SUM(D38:J38) -> 4528.4 | D38: =SUM(D42) -> 1214.7 | E38: =SUM(E42) -> 3313.7 | F38: 0 | G38: 0 | H38: 0 | I38: 0 | J38: 0
A39: 8. | B39: Мероприятие 1 Благоустройство дворовых территорий Североуральского городского округа
A40: 8.1. | B40: Всего, из них | C40: =SUM(D40:J40) -> 23098.7 | D40: =D41+D42 -> 3536.4 | E40: =SUM(E41:E42) -> 3674.7 | F40: =SUM(F41) -> 4819 | G40: =SUM(G41) -> 3575 | H40: =SUM(H41) -> 3746.8 | I40: =SUM(I41) -> 0 | J40: =SUM(J41) -> 3746.8 | K40: 4
A41: 8.2. | B41: местный бюджет | C41: =SUM(D41:J41) -> 18570.3 | D41: 2321.7 | E41: 361 | F41: 4819 | G41: 3575 | H41: 3746.8 | I41: 0 | J41: 3746.8
A42: 8.3. | B42: областной бюджет | C42: =D42+E42+F42+G42+H42+I42+J42 -> 4528.4 | D42: 1214.7 | E42: 3313.7 | F42: 0 | G42: 0 | H42: 0 | I42: 0 | J42: 0
A43: 9. | B43: 3. Прочие нужды
A44: 9.1. | B44: Всего по направлению «Прочие нужды», всего, в том числе: | C44: =SUM(D44:J44) -> 167784.6414 | D44: =SUM(D45:D46) -> 22188.8 | E44: 26087.5 | F44: 42403.84145 | G44: 29553.5 | H44: 18233.2 | I44: 5241.3 | J44: 24076.5 | K44: Х | N44: =SUM(E41+E49) -> 797
A45: 9.2. | B45: местный бюджет | C45: =SUM(D45:J45) -> 163607.6414 | D45: =SUM(D56+D65+D68+D71+D49+D112) -> 22188.8 | E45: =SUM(E56+E65+E68+E71+E49+E112) -> 25741.3 | F45: =SUM(F56+F65+F68+F71+F49+F112) -> 41428.74145 | G45: 28590 | H45: 17281.3 | I45: 4301 | J45: 24076.5
A46: 9.3. | B46: областной бюджет | C46: =SUM(D46:J46) -> 4177 | D46: =SUM(D72) -> 0 | E46: =SUM(E72) -> 346.2 | F46: =SUM(F113) -> 975.1 | G46: =SUM(G113) -> 963.5 | H46: =SUM(H113) -> 951.9 | I46: =SUM(I113) -> 940.3 | J46: =SUM(J113) -> 0
A47: 10. | B47: Мероприятие 1 Благоустройство дворовых территорий Североуральского городского округа
A48: 10.1. | B48: Всего, из них | C48: =SUM(D48:J48) -> 3427.9 | D48: =D49+D50 -> 310.9 | E48: =SUM(E49) -> 436 | F48: 2681 | G48: 0 | H48: 0 | I48: 0 | J48: 0 | K48: 4
A49: 10.2. | B49: местный бюджет | C49: =SUM(D49:J49) -> 3427.9 | D49: 310.9 | E49: 436 | F49: 2681 | G49: 0 | H49: =SUM(G49) -> 0 | I49: =SUM(H49) -> 0 | J49: =SUM(I49) -> 0
A50: 10.3. | B50: областной бюджет | C50: =D50+E50+F50+G50+H50+I50+J50 -> 0 | D50: 0 | E50: 0 | F50: 0 | G50: 0 | H50: 0 | I50: 0 | J50: 0
A51: 11. | B51: Мероприятие 2 Благоустройство парков и скверов в городе Североуральске
A52: 11.1. | B52: Всего, из них | C52: =SUM(D52:J52) -> 0 | D52: =D53+D54 -> 0 | E52: =SUM(E53) -> 0 | F52: 0 | G52: 0 | H52: 0 | I52: 0 | J52: 0 | K52: 5
A53: 11.2. | B53: местный бюджет | C53: =SUM(D53:J53) -> 0 | D53: 0 | E53: 0 | F53: 0 | G53: 0 | H53: =SUM(G53) -> 0 | I53: =SUM(H53) -> 0 | J53: =SUM(I53) -> 0
A54: 12. | B54: Мероприятие 3- Уличное освещение
A55: 12.1. | B55: Всего, в том числе: | C55: =SUM(D55:J55) -> 75356.4908 | D55: =SUM(D56) -> 12001 | E55: 12600 | F55: 18150.6908 | G55: 13000 | H55: 6404.8 | I55: 0 | J55: 13200 | K55: 8, 9
A56: 12.2. | B56: местный бюджет | C56: =SUM(D56:J56) -> 75356.4908 | D56: =SUM(D59+D62) -> 12001 | E56: 12600 | F56: 18150.6908 | G56: 13000 | H56: 6404.8 | I56: 0 | J56: 13200
A57: 12.3. | B57: - Обеспечение бесперебойной подачи электроэнергии
A58: 12.4. | B58: Всего: | C58: =SUM(D58:J58) -> 47709.5908 | D58: =SUM(D59) -> 8644.1 | E58: =SUM(E59) -> 8800 | F58: 10660.6908 | G58: 8000 | H58: 2404.8 | I58: 0 | J58: 9200 | K58: 8, 9
A59: 12.5. | B59: местный бюджет | C59: =SUM(D59:J59) -> 47709.5908 | D59: 8644.1 | E59: 8800 | F59: 10660.6908 | G59: 8000 | H59: 2404.8 | I59: 0 | J59: 9200
A60: 12.6. | B60: - Содержание и ремонт сетей уличного освещения
A61: 12.7. | B61: Всего: | C61: =SUM(D61:J61) -> 27646.9 | D61: =SUM(D62) -> 3356.9 | E61: =SUM(E62) -> 3800 | F61: 7490 | G61: 5000 | H61: 4000 | I61: 0 | J61: 4000 | K61: 8, 9
A62: 12.8. | B62: местный бюджет | C62: =SUM(D62:J62) -> 27646.9 | D62: 3356.9 | E62: 3800 | F62: 7490 | G62: 5000 | H62: 4000 | I62: 0 | J62: 4000
A63: 13. | B63: Мероприятие 4 - Озеленение (цветники, валка сухих деревьев)
A64: 13.1. | B64: Всего, из них | C64: =SUM(D64:J64) -> 20007.94386 | D64: =SUM(D65) -> 2890.9 | E64: 2148 | F64: 3923.84386 | G64: 3000 | H64: 3302.5 | I64: 1440.2 | J64: 3302.5 | K64: 11
A65: 13.2. | B65: местный бюджет | C65: =SUM(D65:J65) -> 20007.94386 | D65: 2890.9 | E65: 2148 | F65: 3923.84386 | G65: 3000 | H65: 3302.5 | I65: 1440.2 | J65: 3302.5
A66: 14. | B66: Мероприятие 5 - Организация и содержание мест захоронения
A67: 14.1. | B67: Всего, из них | C67: =SUM(D67:J67) -> 19771.84212 | D67: =SUM(D68) -> 2263.1 | E67: 2306.9 | F67: 3619.44212 | G67: 3000 | H67: 2860.8 | I67: 2860.8 | J67: 2860.8 | K67: 16
A68: 14.2. | B68: местный бюджет | C68: =SUM(D68:J68) -> 19771.84212 | D68: 2263.1 | E68: 2306.9 | F68: 3619.44212 | G68: 3000 | H68: 2860.8 | I68: =SUM(H68) -> 2860.8 | J68: =SUM(I68) -> 2860.8
A69: 15. | B69: Мероприятие 6 - Прочие мероприятия по благоустройству
A70: 15.1. | B70: Всего, в том числе: | C70: =SUM(D70:J70) -> 44442.86467 | D70: =SUM(D71:D72) -> 4722.9 | E70: =SUM(E71:E72) -> 8596.6 | F70: 12256.96467 | G70: 9440 | H70: 4713.2 | I70: 0 | J70: 4713.2 | K70: 5,6,11,13,14,15,17
A71: 15.2. | B71: местный бюджет | C71: =SUM(D71:J71) -> 44096.66467 | D71: =SUM(D75+D78+D85+D88+D97+D91+D100+D106+D94+D103+D81) -> 4722.9 | E71: =SUM(E75+E78+E85+E88+E97+E91+E100+E106+E94+E103+E81+E109) -> 8250.4 | F71: =SUM(F75+F78+F85+F88+F97+F91+F100+F106+F94+F103+F81+F109) -> 12256.96467 | G71: 9440 | H71: 4713.2 | I71: 0 | J71: 4713.2
A72: 15.3. | B72: областной бюджет | C72: =SUM(D72:J72) -> 346.2 | D72: =SUM(D82) -> 0 | E72: =SUM(E82) -> 346.2 | F72: 0 | G72: 0 | H72: 0 | I72: 0 | J72: 0
A73: 15.4. | B73: - Содержание памятников
A74: 15.5. | B74: Всего: | C74: =SUM(C75) -> 2440.40006 | D74: 369.2 | E74: 404.9 | F74: 384.30006 | G74: 400 | H74: 441 | I74: 0 | J74: 441 | K74: 17
A75: 15.6. | B75: местный бюджет | C75: =SUM(D75:J75) -> 2440.40006 | D75: 369.2 | E75: 404.9 | F75: 384.30006 | G75: 400 | H75: 441 | I75: 0 | J75: 441
A76: 15.7. | B76: - Проведение комплекса профилактических работ по уходу за объектами благоустройства
A77: 15.8. | B77: Всего: | C77: =SUM(C78) -> 6500.2138 | D77: =SUM(D78) -> 1098.7 | E77: =SUM(E78) -> 976.1 | F77: 999.8138 | G77: 1000 | H77: 1212.8 | I77: 0 | J77: 1212.8 | K77: 5
A78: 15.9. | B78: местный бюджет | C78: =SUM(D78:J78) -> 6500.2138 | D78: 1098.7 | E78: 976.1 | F78: 999.8138 | G78: 1000 | H78: 1212.8 | I78: 0 | J78: 1212.8
A79: 15.10. | B79: - Регулирование численности безнадзорных животных
A80: 15.11. | B80: Всего: | C80: =SUM(D80:J80) -> 1677.2 | D80: =SUM(D81:D82) -> 500 | E80: =SUM(E81:E82) -> 1177.2 | F80: 0 | G80: 0 | H80: 0 | I80: 0 | J80: 0 | K80: 13
A81: 15.12. | B81: местный бюджет | C81: =SUM(D81:J81) -> 1331 | D81: 500 | E81: 831 | F81: 0 | G81: 0 | H81: 0 | I81: =SUM(H81) -> 0 | J81: =SUM(I81) -> 0
A82: 15.13. | B82: областной бюджет | C82: =SUM(D82:J82) -> 346.2 | E82: 346.2
A83: 15.14. | B83: - Содержание биоямы (скотомогильник)
A84: 15.15. | B84: Всего: | C84: =SUM(C85) -> 673.22912 | D84: =SUM(D85) -> 116.1 | E84: =SUM(E85) -> 69.3 | F84: 77.02912 | G84: 80 | H84: 165.4 | I84: 0 | J84: 165.4 | K84: 15
A85: 15.16. | B85: местный бюджет | C85: =SUM(D85:J85) -> 673.22912 | D85: 116.1 | E85: 69.3 | F85: 77.02912 | G85: 80 | H85: 165.4 | I85: 0 | J85: 165.4
A86: 15.17. | B86: - Обустройство и эксплуатация новогодних городков
A87: 15.18. | B87: Всего: | C87: =SUM(C88) -> 14561.9 | D87: =SUM(D88) -> 1685.5 | E87: =SUM(E88) -> 2669.2 | F87: 2900 | G87: 2600 | H87: 2353.6 | I87: 0 | J87: 2353.6 | K87: 5
A88: 15.19. | B88: местный бюджет | C88: =SUM(D88:J88) -> 14561.9 | D88: 1685.5 | E88: 2669.2 | F88: 2900 | G88: 2600 | H88: 2353.6 | I88: 0 | J88: 2353.6
A89: 15.20. | B89: - Приобретение декоративного освещения для улиц города Североуральска
A90: 15.21. | B90: Всего: | C90: =SUM(C91) -> 2474.4 | D90: =SUM(D91) -> 773.4 | E90: =SUM(E91) -> 1701 | F90: 0 | G90: 0 | H90: 0 | I90: 0 | J90: 0 | K90: 5
A91: 15.22. | B91: местный бюджет | C91: =SUM(D91:J91) -> 2474.4 | D91: 773.4 | E91: 1701 | F91: 0 | G91: 0 | H91: 0 | I91: =SUM(H91) -> 0 | J91: =SUM(I91) -> 0
A92: 15.23. | B92: - Обслуживание декоративного освещения для улиц города Североуральска
A93: 15.24. | B93: Всего: | C93: =SUM(C94) -> 300 | D93: =SUM(D94) -> 0 | E93: =SUM(E94) -> 0 | F93: 0 | G93: 300 | H93: 0 | I93: 0 | J93: 0 | K93: 5
A94: 15.25. | B94: местный бюджет | C94: =SUM(D94:J94) -> 300 | D94: 0 | E94: 0 | F94: 0 | G94: 300 | H94: 0 | I94: =SUM(H94) -> 0 | J94: =SUM(I94) -> 0
A95: 15.26. | B95: - Акарицидная обработка общественных мест
A96: 15.27. | B96: Всего: | C96: =SUM(C97) -> 1053.4899 | D96: =SUM(D97) -> 92 | E96: =SUM(E97) -> 99.9 | F96: 99.9899 | G96: 100 | H96: 330.8 | I96: 0 | J96: 330.8 | K96: 14
A97: 15.28. | B97: местный бюджет | C97: =SUM(D97:J97) -> 1053.4899 | D97: 92 | E97: 99.9 | F97: 99.9899 | G97: 100 | H97: 330.8 | I97: 0 | J97: 330.8
A98: 15.29. | B98: - Приобретение грунта плодородного (земли садовой)
A99: 15.30. | B99: Всего: | C99: =SUM(C100) -> 707.2 | D99: =SUM(D100) -> 88 | E99: =SUM(E100) -> 0 | F99: 150 | G99: 50 | H99: 209.6 | I99: 0 | J99: 209.6 | K99: 11
A100: 15.31. | B100: местный бюджет | C100: =SUM(D100:J100) -> 707.2 | D100: 88 | E100: 0 | F100: 150 | G100: 50 | H100: 209.6 | I100: 0 | J100: 209.6
A101: 15.32. | B101: - Приобретение и установка металлических урн и скамеек
A102: 15.33. | B102: Всего: | C102: =SUM(C103) -> 1710.25802 | D102: =SUM(D103) -> 0 | E102: =SUM(E103) -> 0 | F102: 1710.25802 | G102: 0 | H102: 0 | I102: 0 | J102: 0 | K102: 6
A103: 15.34. | B103: местный бюджет | C103: =SUM(D103:J103) -> 1710.25802 | D103: 0 | E103: 0 | F103: 1710.25802 | G103: 0 | H103: 0 | I103: =SUM(H103) -> 0 | J103: =SUM(I103) -> 0
A104: 15.35. | B104: - Благоустройство мест общего пользования территории Североуральского городского округа
A105: 15.36. | B105: Всего: | C105: =SUM(C106) -> 12344.57377 | D105: =SUM(D106) -> 0 | E105: =SUM(E106) -> 1499 | F105: 5935.57377 | G105: 4910 | H105: 0 | I105: 0 | J105: 0 | K105: 5
A106: 15.37. | B106: местный бюджет | C106: =SUM(D106:J106) -> 12344.57377 | D106: 0 | E106: 1499 | F106: 5935.57377 | G106: 4910 | H106: 0 | I106: =SUM(H106) -> 0 | J106: =SUM(I106) -> 0
A107: 15.38. | B107: - Приобретение и установка остановочных комплексов на территории Североуральского городского округа
A108: 15.39. | B108: Всего: | C108: =SUM(C109) -> 0 | D108: =SUM(D109) -> 0 | E108: =SUM(E109) -> 0 | F108: 0 | G108: 0 | H108: 0 | I108: 0 | J108: 0 | K108: 5
A109: 15.40. | B109: местный бюджет | C109: =SUM(D109:J109) -> 0 | D109: 0 | E109: 0 | F109: 0 | G109: 0 | H109: 0 | I109: =SUM(H109) -> 0 | J109: =SUM(I109) -> 0
A110: 16. | B110: Мероприятие 7 - Регулирование численности безнадзорных животных
A111: 16.1. | B111: Всего, из них | C111: =SUM(D111:J111) -> 4777.6 | D111: =SUM(D112:D113) -> 0 | E111: =SUM(E112:E113) -> 0 | F111: 1771.9 | G111: 1113.5 | H111: 951.9 | I111: 940.3 | J111: 0 | K111: 13
A112: 16.2. | B112: местный бюджет | C112: =SUM(D112:J112) -> 946.8 | D112: 0 | E112: 0 | F112: 796.8 | G112: 150 | H112: 0 | I112: =SUM(H112) -> 0 | J112: =SUM(I112) -> 0
A113: 16.3. | B113: областной бюджет | C113: =SUM(D113:J113) -> 3830.8 | E113: 0 | F113: 975.1 | G113: 963.5 | H113: 951.9 | I113: 940.3
A114: 17. | B114: Подпрограмма 2: Муниципальная программа по энергосбережению и повышению энергетической эффективности объектов Североуральского городского округа
A115: 17.1. | B115: Всего по подпрограмме 2, в том числе | C115: =SUM(D115:J115) -> 99047.46847 | D115: =SUM(D116:D117) -> 9165.5 | E115: 2961.6 | F115: 15455.86781 | G115: 16337.20066 | H115: 21775.5 | I115: 21775.5 | J115: 11576.3 | K115: Х
A116: 17.2. | B116: местный бюджет | C116: =SUM(D116:J116) -> 92703.06847 | D116: =SUM(D120+D166) -> 2821.1 | E116: =SUM(E120+E166) -> 2961.6 | F116: =F120+F166 -> 15455.86781 | G116: =SUM(G120+G166) -> 16337.20066 | H116: 21775.5 | I116: =SUM(I120+I166) -> 21775.5 | J116: 11576.3
A117: 17.3. | B117: областной бюджет | C117: =SUM(D117:J117) -> 6344.4 | D117: =SUM(D121+D167) -> 6344.4 | E117: =SUM(E121+E167) -> 0 | F117: =SUM(F121+F167) -> 0 | G117: 0 | H117: 0 | I117: 0 | J117: 0
A118: 18. | B118: 1. Капитальные вложения
A119: 18.1. | B119: Всего по направлению «Капитальные вложения», всего, в том числе | C119: =SUM(C120:C121) -> 79965.70986 | D119: 4173.6 | E119: 1420 | F119: 14122.6092 | G119: 15737.20066 | H119: 19775.5 | I119: 19775.5 | J119: 4961.3 | K119: Х
A120: 18.2. | B120: местный бюджет | C120: =SUM(D120:J120) -> 76621.30986 | D120: =SUM(D154+D124) -> 829.2 | E120: 1420 | F120: 14122.6092 | G120: 15737.20066 | H120: 19775.5 | I120: 19775.5 | J120: 4961.3
A121: 18.3. | B121: областной бюджет | C121: =SUM(D121:J121) -> 3344.4 | D121: 3344.4 | E121: 0 | F121: 0 | G121: 0 | H121: 0 | I121: 0 | J121: 0
A122: 19. | B122: 1.1. Бюджетные инвестиции в объекты капитального строительства
A123: 19.1. | B123: Бюджетные инвестиции в объекты капитального строительства всего, в том числе | C123: =SUM(D123:J123) -> 16859.80986 | D123: =SUM(D124:D125) -> 0 | E123: =SUM(E124:E125) -> 0 | F123: 14122.6092 | G123: 2737.20066 | H123: 0 | I123: 0 | J123: 0 | K123: Х
A124: 19.2. | B124: местный бюджет | C124: =SUM(D124:J124) -> 16859.80986 | D124: =SUM(D128+D140+D143+D147+D150) -> 0 | E124: 0 | F124: 14122.6092 | G124: 2737.20066 | H124: 0 | I124: 0 | J124: 0
A125: 19.3. | B125: областной бюджет | C125: =SUM(D125:J125) -> 0 | D125: =SUM(D129+D144+D151) -> 0 | E125: =SUM(E129+E144+E151) -> 0 | F125: 0 | G125: 0 | H125: 0 | I125: 0 | J125: 0
A126: 20. | B126: Мероприятие 3 - Закупка и установка осветительного оборудования с заменой неэффективного на энергосберегающее, в том числе замена ламп накаливания на энергосберегающие, строительство, модернизация сетей уличного освещения, проектно-сметные работы, экспертиза проектно-сметной документации
A127: 20.1. | B127: Всего, из них | C127: =SUM(C128:C129) -> 14458.20066 | D127: =SUM(D128:D129) -> 0 | E127: =SUM(E128:E129) -> 0 | F127: 12330 | G127: 2128.20066 | H127: 0 | I127: 0 | J127: 0 | K127: 28
A128: 20.2. | B128: местный бюджет | C128: =SUM(D128:J128) -> 14458.20066 | D128: 0 | E128: 0 | F128: =SUM(F136+F132) -> 12330 | G128: =SUM(G136+G132) -> 2128.20066 | H128: 0 | I128: =SUM(H128) -> 0 | J128: 0
A129: 20.3. | B129: областной бюджет | C129: =SUM(D129:J129) -> 0 | D129: 0 | E129: 0 | F129: 0 | G129: 0 | H129: 0 | I129: 0 | J129: 0
A130: 20.4. | B130: - Разработка ПСД на строительство сетей уличного освещения микрорайона Южный
A131: 20.5. | B131: Всего: | C131: =SUM(C132) -> 283.20066 | D131: 0 | E131: 0 | F131: 283.20066 | G131: 0 | H131: 0 | I131: 0 | J131: 0 | K131: 28
A132: 20.6. | B132: местный бюджет | C132: =SUM(D132:J132) -> 283.20066 | D132: 0 | E132: 0 | F132: 283.20066 | G132: 0 | H132: 0 | I132: =SUM(H132) -> 0 | J132: =SUM(I132) -> 0
A133: 20.7. | B133: областной бюджет | C133: =SUM(D133:J133) -> 0 | D133: 0 | E133: 0 | F133: 0 | G133: 0 | H133: 0 | I133: 0 | J133: 0
A134: 20.8. | B134: - Строительство сетей уличного освещения микрорайона Южный
A135: 20.9. | B135: Всего: | C135: =SUM(C136) -> 14175 | D135: 0 | E135: 0 | F135: 12046.79934 | G135: 2128.20066 | H135: 0 | I135: 0 | J135: 0 | K135: 28
A136: 20.10. | B136: местный бюджет | C136: =SUM(D136:J136) -> 14175 | D136: 0 | E136: 0 | F136: 12046.79934 | G136: 2128.20066 | H136: 0 | I136: =SUM(H136) -> 0 | J136: =SUM(I136) -> 0
A137: 20.11. | B137: областной бюджет | C137: =SUM(D137:J137) -> 0 | D137: 0 | E137: 0 | F137: 0 | G137: 0 | H137: 0 | I137: 0 | J137: 0
A138: 21. | B138: Мероприятие 5 - Разработка, экспертиза проектно-сметной документации на строительство сетей водоснабжения в Североуральском городском округе
A139: 21.1. | B139: Всего, из них | C139: =SUM(D139:J139) -> 0 | D139: =SUM(D140) -> 0 | E139: =SUM(E140) -> 0 | F139: 0 | G139: 0 | H139: 0 | I139: 0 | J139: 0 | K139: 31
A140: 21.2. | B140: местный бюджет | C140: =SUM(D140:J140) -> 0 | D140: 0 | E140: 0 | F140: 0 | G140: 0 | H140: =SUM(G140) -> 0 | I140: =SUM(H140) -> 0 | J140: =SUM(I140) -> 0
A141: 22. | B141: Мероприятие 6 - Строительство сетей водоснабжения в Североуральском городском округе
A142: 22.1. | B142: Всего, из них | C142: =SUM(C143:C144) -> 0 | D142: =SUM(D143:D144) -> 0 | E142: =SUM(E143:E144) -> 0 | F142: 0 | G142: 0 | H142: 0 | I142: 0 | J142: 0 | K142: 32
A143: 22.2. | B143: местный бюджет | C143: =SUM(D143:J143) -> 0 | D143: 0 | E143: 0 | F143: 0 | G143: 0 | H143: =SUM(G143) -> 0 | I143: 0 | J143: 0
A144: 22.3. | B144: областной бюджет | C144: =SUM(D144:J144) -> 0 | D144: 0 | E144: 0 | F144: 0 | G144: 0 | H144: 0 | I144: 0 | J144: 0
A145: 23. | B145: Мероприятие 7 - Разработка, экспертиза проектно-сметной документации на строительство котельных в Североуральском городском округе
A146: 23.1. | B146: Всего, из них | C146: =SUM(D146:J146) -> 2401.6092 | D146: =SUM(D147) -> 0 | E146: =SUM(E147) -> 0 | F146: 1792.6092 | G146: 609 | H146: 0 | I146: 0 | J146: 0 | K146: 33
A147: 23.2. | B147: местный бюджет | C147: =SUM(D147:J147) -> 2401.6092 | D147: 0 | E147: 0 | F147: 1792.6092 | G147: 609 | H147: 0 | I147: =SUM(H147) -> 0 | J147: =SUM(I147) -> 0
A148: 24. | B148: Мероприятие 8 - Строительство котельных в Североуральском городском округе
A149: 24.1. | B149: Всего, из них | C149: =SUM(C150:C151) -> 0 | D149: =SUM(D150:D151) -> 0 | E149: =SUM(E150:E151) -> 0 | F149: 0 | G149: 0 | H149: 0 | I149: 0 | J149: 0 | K149: 34
A150: 24.2. | B150: местный бюджет | C150: =SUM(D150:J150) -> 0 | D150: 0 | E150: 0 | F150: 0 | G150: 0 | H150: 0 | I150: 0 | J150: =SUM(I150) -> 0
A151: 24.3. | B151: областной бюджет | C151: =SUM(D151:J151) -> 0 | D151: 0 | E151: 0 | F151: 0 | G151: 0 | H151: =SUM(G151) -> 0 | I151: =SUM(H151) -> 0 | J151: =SUM(I151) -> 0
A152: 25. | B152: 1.2. Иные капитальные вложения
A153: 25.1. | B153: Всего, в том числе | C153: =SUM(C154:C155) -> 63105.9 | D153: 4173.6 | E153: 1420 | F153: 0 | G153: 13000 | H153: 19775.5 | I153: 19775.5 | J153: 4961.3 | K153: Х
A154: 25.2. | B154: местный бюджет | C154: =SUM(D154:J154) -> 59761.5 | D154: =SUM(D158+D162) -> 829.2 | E154: =SUM(E158+E162) -> 1420 | F154: 0 | G154: 13000 | H154: 19775.5 | I154: 19775.5 | J154: 4961.3
A155: 25.3. | B155: областной бюджет | C155: =SUM(D155:J155) -> 3344.4 | D155: =SUM(D159+D163) -> 3344.4 | E155: =SUM(E159+E163) -> 0 | F155: 0 | G155: 0 | H155: 0 | I155: 0 | J155: 0
A156: 26. | B156: Мероприятие 1- Реконструкция, модернизация водопроводных сетей, сетей системы водоотведения с заменой (без замены) оборудования с более высоким КПД, установка регулируемого привода, реконструкция тепловых сетей, в том числе тепловых пунктов, котельных, капитальный ремонт систем коммунального хозяйства
A157: 26.1. | B157: Всего, в том числе: | C157: =SUM(C158:C159) -> 60549.7 | D157: 3037.4 | E157: 0 | F157: 0 | G157: 13000 | H157: 19775.5 | I157: 19775.5 | J157: 4961.3 | K157: 29
A158: 26.2. | B158: местный бюджет | C158: =SUM(D158:J158) -> 57793.3 | D158: 281 | E158: 0 | F158: 0 | G158: 13000 | H158: 19775.5 | I158: 19775.5 | J158: 4961.3
A159: 26.3. | B159: областной бюджет | C159: =SUM(D159:J159) -> 2756.4 | D159: 2756.4 | E159: 0 | F159: 0 | G159: 0 | H159: =SUM(G159) -> 0 | I159: =SUM(H159) -> 0 | J159: =SUM(I159) -> 0
A160: 27. | B160: Мероприятие 3 - Закупка и установка осветительного оборудования с заменой неэффективного на энергосберегающее, в том числе замена ламп накаливания на энергосберегающие, строительство, модернизация сетей уличного освещения, проектно-сметные работы, экспертиза проектно-сметной документации
A161: 27.1. | B161: Всего, из них | C161: =SUM(C162:C163) -> 2556.2 | D161: =SUM(D162:D163) -> 1136.2 | E161: =SUM(E162:E163) -> 1420 | F161: 0 | G161: 0 | H161: 0 | I161: 0 | J161: 0 | K161: 28
A162: 27.2. | B162: местный бюджет | C162: =SUM(D162:J162) -> 1968.2 | D162: 548.2 | E162: 1420 | F162: 0 | G162: 0 | H162: 0 | I162: =SUM(H162) -> 0 | J162: 0
A163: 27.3. | B163: областной бюджет | C163: =SUM(D163:J163) -> 588 | D163: 588 | E163: 0 | F163: 0 | G163: 0 | H163: 0 | I163: 0 | J163: 0
A164: 28. | B164: 3. Прочие нужды
A165: 28.1. | B165: Всего по направлению «Прочие нужды», всего, в том числе: | C165: =SUM(D165:J165) -> 19081.75861 | D165: =SUM(D166:D167) -> 4991.9 | E165: =SUM(E166:E167) -> 1541.6 | F165: 1333.25861 | G165: 600 | H165: 2000 | I165: 2000 | J165: 6615 | K165: Х
A166: 28.2. | B166: местный бюджет | C166: =SUM(D166:J166) -> 16081.75861 | D166: =SUM(D170+D175+D179+D182) -> 1991.9 | E166: =SUM(E170+E175+E179+E182) -> 1541.6 | F166: 1333.25861 | G166: 600 | H166: 2000 | I166: 2000 | J166: 6615
A167: 28.3. | B167: областной бюджет | C167: =SUM(D167:J167) -> 3000 | D167: =SUM(D171+D176) -> 3000 | E167: =SUM(E171+E176) -> 0 | F167: 0 | G167: 0 | H167: 0 | I167: 0 | J167: 0
A168: 29. | B168: Мероприятие 2 - Оснащение зданий (строений, сооружений), находящихся в муниципальной собственности, многоквартирных жилых домов, жилых помещений, квартир приборами учета используемых энергетических ресурсов, в том числе разработка проектно-сметной документации
A169: 29.1. | B169: Всего, из них | C169: =SUM(D169:J169) -> 12357.90861 | D169: =SUM(D170:D171) -> 4200 | E169: 1100 | F169: 1250.40861 | G169: 500 | H169: 1000 | I169: 1000 | J169: 3307.5 | K169: 22,23,24,25,26
A170: 29.2. | B170: местный бюджет | C170: =SUM(D170:J170) -> 9357.90861 | D170: 1200 | E170: 1100 | F170: 1250.40861 | G170: 500 | H170: 1000 | I170: =SUM(H170) -> 1000 | J170: 3307.5
A171: 29.3. | B171: областной бюджет | C171: =SUM(D171:J171) -> 3000 | D171: 3000 | E171: =SUM(E172) -> 0 | F171: 0 | G171: 0 | H171: 0 | I171: 0 | J171: 0
A172: 29.4. | B172: федеральный бюджет | C172: =SUM(D172:J172) -> 0 | D172: 0 | E172: 0 | F172: 0 | G172: =SUM(F172) -> 0 | H172: =SUM(G172) -> 0 | I172: =SUM(H172) -> 0 | J172: =SUM(I172) -> 0
A173: 30. | B173: Мероприятие 3 - Закупка и установка осветительного оборудования с заменой неэффективного на энергосберегающее, в том числе замена ламп накаливания на энергосберегающие, строительство, модернизация сетей уличного освещения, проектно-сметные работы, экспертиза проектно-сметной документации
A174: 30.1. | B174: Всего, из них | C174: =SUM(C175:C176) -> 5899.4 | D174: =SUM(D175:D176) -> 411.9 | E174: =SUM(E175:E176) -> 180 | F174: 0 | G174: 0 | H174: 1000 | I174: 1000 | J174: 3307.5 | K174: 28
A175: 30.2. | B175: местный бюджет | C175: =SUM(D175:J175) -> 5899.4 | D175: 411.9 | E175: 180 | F175: 0 | G175: 0 | H175: 1000 | I175: =SUM(H175) -> 1000 | J175: 3307.5
A176: 30.3. | B176: областной бюджет | C176: =SUM(D176:J176) -> 0 | D176: 0 | E176: 0 | F176: 0 | G176: 0 | H176: 0 | I176: 0 | J176: 0
A177: 31. | B177: Мероприятие 4- Разработка схемы водоснабжения Североуральского городского округа
A178: 31.1. | B178: Всего, из них | C178: =SUM(D178:J178) -> 380 | D178: =SUM(D179) -> 380 | E178: =SUM(E179) -> 0 | F178: 0 | G178: 0 | H178: 0 | I178: 0 | J178: 0 | K178: 30
A179: 31.2. | B179: местный бюджет | C179: =SUM(D179:J179) -> 380 | D179: 380 | E179: 0 | F179: 0 | G179: =SUM(F179) -> 0 | H179: =SUM(G179) -> 0 | I179: =SUM(H179) -> 0 | J179: =SUM(I179) -> 0
A180: 32. | B180: Мероприятие 9- Прочие мероприятия в области энергосбережения (разработка технических заданий, топливно-энерготехнического баланса и т.п.)
A181: 32.1. | B181: Всего, из них | C181: =SUM(D181:J181) -> 444.45 | D181: =SUM(D182) -> 0 | E181: =SUM(E182) -> 261.6 | F181: 82.85 | G181: 100 | H181: 0 | I181: 0 | J181: 0 | K181: 35.36
A182: 32.2. | B182: местный бюджет | C182: =SUM(D182:J182) -> 444.45 | D182: 0 | E182: 261.6 | F182: 82.85 | G182: 100 | H182: 0 | I182: =SUM(H182) -> 0 | J182: =SUM(I182) -> 0
A183: 33. | B183: Подпрограмма 3: Развитие лесного хозяйства на территории Североуральского городского округа
A184: 33.1. | B184: Всего по подпрограмме 1, всего, в том числе | C184: =SUM(C185:C185) -> 3728.2 | D184: =SUM(D185) -> 774.1 | E184: =SUM(E185) -> 881.1 | F184: 0 | G184: 573 | H184: 500 | I184: 500 | J184: 500 | K184: Х
A185: 33.2. | B185: местный бюджет | C185: =SUM(D185:J185) -> 3728.2 | D185: =SUM(D197) -> 774.1 | E185: =SUM(E197) -> 881.1 | F185: 0 | G185: 573 | H185: 500 | I185: 500 | J185: 500
A186: 34. | B186: 1. Капитальные вложения
A187: 34.1. | B187: Всего по направлению «Капитальные вложения», всего, в том числе | C187: 0 | D187: 0 | E187: 0 | F187: 0 | G187: 0 | H187: 0 | I187: 0 | J187: 0 | K187: Х
A188: 34.2. | B188: местный бюджет | C188: 0 | D188: 0 | E188: 0 | F188: 0 | G188: 0 | H188: 0 | I188: 0 | J188: 0
A189: 35. | B189: 1.1. Бюджетные инвестиции в объекты капитального строительства
A190: 35.1. | B190: Бюджетные инвестиции в объекты капитального строительства всего, в том числе: | C190: =SUM(C191) -> 0 | D190: =SUM(D191) -> 0 | E190: 0 | F190: 0 | G190: 0 | H190: 0 | I190: 0 | J190: 0 | K190: Х
A191: 35.2. | B191: местный бюджет | C191: 0 | D191: 0 | E191: 0 | F191: 0 | G191: 0 | H191: 0 | I191: 0 | J191: 0
A192: 36. | B192: 1.2. Иные капитальные вложения
A193: 36.1. | B193: Всего, в том числе: | C193: =SUM(B195) -> 0 | D193: 0 | E193: 0 | F193: 0 | G193: 0 | H193: 0 | I193: 0 | J193: 0 | K193: Х
A194: 36.2 | B194: местный бюджет | C194: 0 | D194: 0 | E194: 0 | F194: 0 | G194: 0 | H194: 0 | I194: 0 | J194: 0
A195: 37. | B195: 3. Прочие нужды
A196: 37.1. | B196: Всего, из них | C196: =SUM(C197:C197) -> 3728.2 | D196: 774.1 | E196: 881.1 | F196: 0 | G196: 573 | H196: 500 | I196: 500 | J196: 500 | K196: Х
A197: 37.2. | B197: местный бюджет | C197: =SUM(D197:J197) -> 3728.2 | D197: =SUM(D200) -> 774.1 | E197: =SUM(E200) -> 881.1 | F197: 0 | G197: 573 | H197: 500 | I197: 500 | J197: 500
A198: 38. | B198: Мероприятие 1- Развитие лесного хозяйства на территории Североуральского городского округа
A199: 38.1. | B199: Всего, в том числе: | C199: =SUM(D199:J199) -> 3728.2 | D199: =SUM(D200) -> 774.1 | E199: =SUM(E200) -> 881.1 | F199: 0 | G199: 573 | H199: 500 | I199: 500 | J199: 500 | K199: 40
A200: 38.2. | B200: местный бюджет | C200: =SUM(D200:J200) -> 3728.2 | D200: 774.1 | E200: 881.1 | F200: 0 | G200: 573 | H200: 500 | I200: =SUM(H200) -> 500 | J200: =SUM(I200) -> 500
A201: 39. | B201: Подпрограмма 4 : Переселение граждан на территории Североуральского городского округа из аварийного жилищного фонда
... 183 more rows

Sheet Лист2

Sheet Лист3
